bitfinex/quotes_SOLUSD_20220128
["timestamp","ask_amount","ask_price","bid_price","bid_amount"]
[1643346458395,0.10334465,92.169,92.09,15.65]
[1643346458796,0.35334465,92.169,92.09,15.65]
[1643346461796,0.10334465,92.169,92.09,15.65]
[1643346462296,0.10334465,92.169,92.091,0.25]
[1643346462598,0.10334465,92.169,92.09,15.65]
[1643346462796,16.2975,92.16,92.09,15.65]
[1643346463196,0.25,92.159,92.09,15.65]
[1643346463596,49.58962541,92.159,92.09,15.65]
[1643346466001,0.25,92.159,92.1,6.0]
[1643346466201,0.25,92.159,92.11,15.65]
[1643346466404,0.10334465,92.176,92.11,15.65]
[1643346466602,0.10334465,92.176,92.111,0.25]
[1643346466802,0.10334465,92.158,92.111,0.25]
[1643346467104,0.10334465,92.158,92.111,2.63345701]
[1643346467301,0.10334465,92.158,92.111,2.38345701]
[1643346467915,0.10334465,92.158,92.112,0.25]
[1643346468111,0.10334465,92.158,92.112,2.38843186]
[1643346468307,0.10334465,92.158,92.112,0.25]
[1643346468507,0.10334465,92.158,92.111,2.38345701]
[1643346469308,0.10334465,92.189,92.111,2.38345701]
[1643346469509,3.00579121,92.187,92.111,2.38345701]
[1643346469807,3.00579121,92.186,92.111,2.38345701]
[1643346470009,6.01553234,92.186,92.111,2.38345701]
[1643346470214,3.00579121,92.186,92.111,2.38345701]
[1643346470614,3.00579121,92.185,92.111,2.38345701]
[1643346470810,3.00579121,92.188,92.111,2.38345701]
[1643346471610,47.46895216,92.179,92.111,2.38345701]
[1643346472011,3.00974113,92.178,92.111,2.38345701]
[1643346472513,3.00579121,92.176,92.111,2.38345701]
[1643346472914,3.00579121,92.176,92.11,15.65]
[1643346473717,3.00579121,92.173,92.11,15.65]
[1643346474521,3.11308578,92.178,92.11,15.65]
[1643346474722,3.00579121,92.172,92.11,15.65]
[1643346475843,0.35334465,92.171,92.11,15.65]
[1643346476041,3.00974113,92.17,92.11,15.65]
[1643346476240,0.25,92.169,92.11,15.65]
[1643346476444,3.00974113,92.168,92.11,15.65]
[1643346476844,0.25,92.167,92.11,15.65]
[1643346477041,3.00974113,92.166,92.11,15.65]
[1643346477243,40.88190185,92.165,92.11,15.65]
[1643346477442,3.00974113,92.164,92.11,15.65]
[1643346478242,3.00974113,92.164,92.111,0.25]
[1643346478445,0.10334465,92.171,92.111,0.25]
[1643346478843,0.10334465,92.163,92.111,0.25]
[1643346479245,0.10334465,92.163,92.11,15.65]
[1643346480044,0.10334465,92.163,92.111,0.25]
[1643346481044,0.10334465,92.163,92.11,15.65]
[1643346481244,0.10334465,92.163,92.111,0.25]
[1643346481846,0.10334465,92.177,92.111,0.25]
[1643346483847,0.10334465,92.177,92.11,15.65]
[1643346485051,0.10334465,92.177,92.111,0.25]
[1643346485248,0.35334465,92.177,92.111,0.25]
[1643346485448,3.00974113,92.176,92.111,0.25]
[1643346485851,3.00974113,92.176,92.11,15.65]
[1643346488954,3.00579121,92.177,92.11,15.65]
[1643346489154,0.10334465,92.175,92.11,15.65]
[1643346490554,3.00579121,92.171,92.11,15.65]
[1643346490753,3.00579121,92.17,92.11,15.65]
[1643346491755,3.00579121,92.169,92.11,15.65]
[1643346491959,3.00579121,92.164,92.11,15.65]
[1643346492156,3.00579121,92.158,92.08,15.65]
[1643346492358,3.00579121,92.152,92.041,22.7294]
[1643346492559,3.00579121,92.142,92.051,6.0]
[1643346492758,3.00579121,92.138,92.052,8.77387772]
[1643346493060,16.303,92.12,92.052,8.77387772]
[1643346493265,42.54650837,92.119,92.052,8.77387772]
[1643346493671,24.1197,92.136,92.052,8.77387772]
[1643346493868,3.02144344,92.135,92.053,0.25]
[1643346494668,3.00579121,92.144,92.062,6.0]
[1643346494870,3.00579121,92.165,92.07,15.65]
[1643346495168,3.02005487,92.164,92.08,6.0]
[1643346495369,3.00579121,92.158,92.09,15.65]
[1643346495570,47.23407836,92.157,92.091,1.88553243]
[1643346495972,3.02005487,92.156,92.091,1.88553243]
[1643346496171,3.27005487,92.156,92.091,1.88553243]
[1643346496374,3.02005487,92.155,92.091,1.88553243]
[1643346496976,3.02005487,92.155,92.092,0.25]
[1643346497175,0.25,92.156,92.092,0.25]
[1643346498077,0.25,92.156,92.091,1.88553243]
[1643346498277,0.25,92.156,92.09,15.65]
[1643346498480,3.01985657,92.155,92.09,15.65]
[1643346498677,3.01985657,92.155,92.07,15.65]
[1643346498678,3.00579121,92.151,92.07,15.65]
[1643346498977,3.12320122,92.155,92.063,23.5884]
[1643346498978,3.00579121,92.146,92.063,23.5884]
[1643346499177,3.00579121,92.145,92.063,23.5884]
[1643346499377,46.95691648,92.143,92.063,23.5884]
[1643346499578,46.95691648,92.143,92.06,15.65]
[1643346499579,16.3012,92.13,92.06,15.65]
[1643346500279,3.01885484,92.129,92.029,24.2059]
[1643346500478,43.18837329,92.127,92.046,6.0]
[1643346500677,43.18837329,92.127,92.04,15.65]
[1643346500678,3.01885484,92.126,92.04,15.65]
[1643346500878,3.01885484,92.126,92.05,6.0]
[1643346501295,16.3043,92.12,92.04,15.65]
[1643346501695,112.31541484,92.119,92.04,15.65]
[1643346501995,3.01541484,92.118,92.04,15.65]
[1643346502194,3.01541484,92.124,92.04,15.65]
[1643346502796,112.31541484,92.124,92.04,15.65]
[1643346502997,3.01541484,92.123,92.04,15.65]
[1643346503395,47.39083146,92.099,92.04,15.65]
[1643346504995,0.10334465,92.098,92.04,15.65]
[1643346505397,109.40334465,92.098,92.04,15.65]
[1643346505595,0.10334465,92.098,92.04,15.65]
[1643346506396,16.3094,92.09,92.04,15.65]
[1643346506796,0.25,92.089,92.04,15.65]
[1643346507996,0.10334465,92.088,92.04,15.65]
[1643346508809,0.10334465,92.088,92.02,15.65]
[1643346509202,0.10334465,92.088,92.021,0.25]
[1643346511003,0.10334465,92.088,92.02,15.65]
[1643346513409,16.3114,92.08,92.02,15.65]
[1643346513808,0.10334465,92.079,92.02,15.65]
[1643346514011,44.2581139,92.079,92.02,15.65]
[1643346517315,0.25,92.078,92.02,15.65]
[1643346517816,0.10334465,92.077,92.02,15.65]
[1643346520021,16.313,92.07,92.02,15.65]
[1643346520218,16.313,92.07,91.996,10.63831383]
[1643346521118,0.10334465,92.069,91.996,10.63831383]
[1643346521321,0.10334465,92.069,91.997,2.38862152]
[1643346521522,0.10334465,92.069,92.01,15.65]
[1643346523221,0.10334465,92.069,92.01,14.65]
[1643346524222,0.35334465,92.069,92.01,14.65]
[1643346526422,16.313,92.07,92.01,14.65]
[1643346526621,16.16634465,92.07,92.01,14.65]
[1643346527724,16.3149,92.06,92.01,14.65]
[1643346528024,46.48294916,92.059,92.01,14.65]
[1643346528625,46.48294916,92.059,91.996,10.63831383]
[1643346529228,46.48294916,92.059,91.99,15.65]
[1643346529528,16.3166,92.05,91.99,15.65]
[1643346532228,16.3166,92.05,91.97,61.1702]
[1643346532428,1.50817058,92.044,91.97,61.1702]
[1643346532630,16.3185,92.04,91.97,61.1702]
[1643346532827,109.3,92.038,91.97,61.1702]
[1643346533027,41.44901045,92.038,91.971,7.67699184]
[1643346533230,16.3185,92.04,91.971,7.67699184]
[1643346533428,1.50817058,92.045,91.972,0.25]
[1643346533631,1.50817058,92.053,91.972,2.38862152]
[1643346533829,1.50817058,92.054,91.972,2.38862152]
[1643346534228,47.23211036,92.053,91.972,2.38862152]
[1643346534634,47.23211036,92.053,91.971,7.67699184]
[1643346534846,47.23211036,92.053,91.972,0.25]
[1643346535047,47.23211036,92.053,91.971,7.67699184]
[1643346535048,47.23211036,92.053,91.97,61.1702]
[1643346535447,16.3189,92.03,91.97,61.1702]
[1643346535647,16.3189,92.03,91.97,45.5202]
[1643346536053,39.16913787,92.029,91.97,45.5202]
[1643346536249,39.16913787,92.029,91.967,9.28280955]
[1643346536451,39.16913787,92.029,91.97,15.65]
[1643346538855,16.3223,92.02,91.97,15.65]
[1643346539253,16.3223,92.02,91.945,47.5451]
[1643346539254,109.3,92.019,91.945,47.5451]
[1643346539453,132.8913,92.019,91.946,0.25]
[1643346540254,23.5913,92.019,91.946,0.25]
[1643346543056,109.3,92.018,91.946,0.25]
[1643346543455,109.3,92.018,91.94,15.65]
[1643346545459,1.50817058,92.03,91.948,111.9]
[1643346545659,1.50817058,92.042,91.96,15.65]
[1643346545858,1.50817058,92.052,91.97,195.58]
[1643346546158,1.50817058,92.061,91.98,15.65]
[1643346546358,1.50817058,92.067,91.981,48.5704]
[1643346546561,1.50817058,92.067,91.991,6.0]
[1643346546860,1.50817058,92.068,92.001,109.3]
[1643346547063,1.50817058,92.086,92.011,6.0]
[1643346547259,1.50817058,92.104,92.031,109.3]
[1643346547460,1.50817058,92.118,92.04,15.65]
[1643346547665,39.33503165,92.117,92.041,14.48661447]
[1643346547865,1.50817058,92.116,92.05,6.0]
[1643346548061,1.50817058,92.116,92.06,15.65]
[1643346548262,39.33503165,92.117,92.061,0.25]
[1643346548461,3.00579121,92.142,92.061,0.25]
[1643346548462,1.50817058,92.12,92.061,0.25]
[1643346548861,1.50817058,92.122,92.07,6.0]
[1643346549064,1.50817058,92.123,92.08,15.65]
[1643346549263,1.50817058,92.125,92.08,15.65]
[1643346549462,49.00184567,92.122,92.08,15.65]
[1643346551265,49.00184567,92.122,92.06,15.65]
[1643346551466,49.00184567,92.122,92.04,15.65]
[1643346551664,16.3104,92.1,92.04,15.65]
[1643346551865,43.50196785,92.089,92.04,15.65]
[1643346553164,43.50196785,92.089,92.0,195.58]
[1643346553364,1.50817058,92.085,91.952,22.8402]
[1643346553566,1.50817058,92.075,92.0,15.65]
[1643346553767,1.50817058,92.064,92.0,15.65]
[1643346553964,1.50817058,92.063,92.0,15.65]
[1643346554165,1.50817058,92.061,92.0,15.65]
[1643346554365,1.50817058,92.06,92.0,15.65]
[1643346554566,16.3184,92.05,92.0,15.65]
[1643346555467,109.3,92.049,92.0,15.65]
[1643346555664,153.03860192,92.049,92.0,15.65]
[1643346558465,16.3213,92.04,91.97,15.65]
[1643346558666,1.50817058,92.036,91.95,15.65]
[1643346558868,1.50817058,92.033,91.94,15.65]
[1643346559267,1.50817058,92.026,91.94,15.65]
[1643346559566,17.83217058,92.03,91.941,24.82121028]
[1643346559767,109.3,92.029,91.941,24.82121028]
[1643346560368,1.50817058,92.027,91.941,24.82121028]
[1643346560570,1.50817058,92.027,91.94,15.65]
[1643346560868,1.50817058,92.028,91.94,15.65]
[1643346561368,110.80817058,92.029,91.94,15.65]
[1643346561571,109.3,92.029,91.941,21.21541189]
[1643346564773,109.3,92.029,91.94,15.65]
[1643346565573,16.3265,92.02,91.94,15.65]
[1643346565777,39.37528208,92.018,91.92,15.65]
[1643346566274,13.45030981,92.017,91.92,15.65]
[1643346567275,16.3284,92.01,91.92,15.65]
[1643346567678,109.3,92.009,91.92,15.65]
[1643346568479,109.3,92.009,91.892,2.13271766]
[1643346568480,16.3301,92.0,91.892,2.13271766]
[1643346568687,16.3301,92.0,91.858,1.50645862]
[1643346568882,145.7595465,91.999,91.87,15.65]
[1643346569081,54.4539,91.99,91.87,15.65]
[1643346569281,1.50817058,91.986,91.87,15.65]
[1643346569482,36.6689079,91.985,91.871,18.55974376]
[1643346569882,109.3,91.984,91.871,18.55974376]
[1643346570083,122.75030981,91.984,91.871,18.55974376]
[1643346570284,16.3362,91.97,91.871,18.55974376]
[1643346570484,42.55155171,91.969,91.871,18.55974376]
[1643346570685,91.37425171,91.969,91.871,18.55974376]
[1643346570891,91.37425171,91.969,91.87,15.65]
[1643346570892,42.55155171,91.969,91.889,7.74966639]
[1643346571086,42.55155171,91.969,91.9,15.65]
[1643346571285,42.55155171,91.969,91.901,0.25]
[1643346571485,42.55155171,91.969,91.901,2.38271766]
[1643346571887,16.3311,92.0,91.902,2.13271766]
[1643346572088,1.50817058,92.01,91.902,2.13271766]
[1643346572289,1.50817058,92.012,91.903,0.25]
[1643346572488,23.0766,92.019,91.912,6.0]
[1643346572688,95.91985412,92.038,91.92,15.65]
[1643346572889,42.69783119,92.018,91.921,24.2253]
[1643346573192,42.69783119,92.018,91.931,13.74966639]
[1643346573393,42.69783119,92.018,91.94,15.65]
[1643346574790,42.69783119,92.018,91.941,0.25]
[1643346574993,42.69783119,92.018,91.941,2.38271766]
[1643346575193,42.69783119,92.018,91.942,2.13271766]
[1643346575395,42.69783119,92.018,91.94,15.65]
[1643346576920,42.69783119,92.018,91.941,2.38167608]
[1643346577120,42.69783119,92.018,91.94,15.65]
[1643346579820,42.69783119,92.018,91.91,15.65]
[1643346580021,109.3,92.016,91.91,15.65]
[1643346580421,1.50817058,92.012,91.91,15.65]
[1643346580620,1.50817058,92.005,91.91,15.65]
[1643346580819,35.13328992,91.993,91.895,45.97668354]
[1643346581021,1.50817058,91.987,91.895,22.05958354]
[1643346581621,1.50817058,91.988,91.895,22.05958354]
[1643346581820,1.50817058,91.985,91.895,22.05958354]
[1643346582020,24.9004,91.991,91.895,22.05958354]
[1643346582021,1.50817058,91.986,91.895,22.05958354]
[1643346582220,1.50817058,91.987,91.895,22.05958354]
[1643346582623,1.50817058,91.987,91.89,15.65]
[1643346582822,22.6355,91.986,91.89,15.65]
[1643346583025,110.80817058,91.985,91.89,15.65]
[1643346583521,151.58589522,91.979,91.89,15.65]
[1643346583729,1.50817058,91.963,91.861,23.2018]
[1643346583926,1.50817058,91.96,91.861,23.2018]
[1643346584427,110.80817058,91.961,91.861,23.2018]
[1643346584627,109.3,91.961,91.861,23.2018]
[1643346584826,49.2156155,91.96,91.862,25.35937849]
[1643346585034,1.50817058,91.957,91.862,25.35937849]
[1643346585226,1.50817058,91.954,91.862,25.35937849]
[1643346585432,1.50817058,91.956,91.861,23.2018]
[1643346585829,24.53487058,91.955,91.861,23.2018]
[1643346586029,109.3,91.954,91.861,23.2018]
[1643346586430,16.3391,91.95,91.86,15.65]
[1643346586628,109.3,91.954,91.82,25.77161923]
[1643346586629,54.4848,91.93,91.82,25.77161923]
[1643346586829,54.4848,91.93,91.82,41.42161923]
[1643346587228,1.50817058,91.937,91.82,41.42161923]
[1643346587432,43.65497435,91.942,91.821,26.67997608]
[1643346587630,43.65497435,91.942,91.825,1.50645862]
[1643346587829,43.65497435,91.942,91.841,0.53779092]
[1643346588029,43.65497435,91.942,91.85,15.65]
[1643346588429,43.65497435,91.942,91.851,0.25]
[1643346588629,43.65497435,91.942,91.851,2.38178875]
[1643346588831,43.65497435,91.942,91.861,18.59543625]
[1643346589030,24.7012,91.948,91.861,18.59543625]
[1643346589229,24.7012,91.948,91.862,2.38178875]
[1643346589629,24.7012,91.948,91.863,2.13178875]
[1643346589828,24.7012,91.948,91.864,0.25]
[1643346590029,49.45461412,91.947,91.864,0.25]
[1643346590230,49.45461412,91.947,91.863,2.13178875]
[1643346591442,49.45461412,91.947,91.861,18.59543625]
[1643346592836,46.673,91.969,91.862,0.25]
[1643346593036,1.50817058,91.97,91.871,6.0]
[1643346593235,54.4374,92.02,91.88,15.65]
[1643346593236,1.50817058,91.976,91.88,15.65]
[1643346593436,40.50893958,91.979,91.88,211.23]
[1643346593736,39.000769,91.979,91.89,201.58]
[1643346593937,39.000769,91.979,91.9,15.65]
[1643346594135,39.000769,91.979,91.91,6.0]
[1643346594340,39.000769,91.979,91.92,15.65]
[1643346594738,39.000769,91.979,91.921,0.25]
[1643346594935,39.000769,91.979,91.921,20.977225]
[1643346595336,47.81303241,91.978,91.921,18.59543625]
[1643346598141,47.81303241,91.978,91.92,15.65]
[1643346598543,109.3,91.977,91.92,15.65]
[1643346599046,109.3,91.977,91.903,25.31606561]
[1643346599243,24.3204,91.976,91.903,25.31606561]
[1643346599442,109.3,91.975,91.903,25.31606561]
[1643346599645,24.3204,91.976,91.903,25.31606561]
[1643346599844,24.3204,91.976,91.9,15.65]
[1643346600046,24.3204,91.976,91.855,1.50645862]
[1643346600245,1.50817058,91.971,91.87,15.65]
[1643346600447,2.95669142,91.975,91.87,15.65]
[1643346600448,1.50817058,91.969,91.87,15.65]
[1643346600644,1.50817058,91.967,91.87,15.65]
[1643346600844,39.35385666,91.954,91.832,23.45476118]
[1643346601046,62.98925666,91.954,91.84,15.65]
[1643346601247,1.50817058,91.945,91.832,23.45476118]
[1643346601448,1.50817058,91.945,91.82,15.65]
[1643346601449,1.50817058,91.945,91.83,15.65]
[1643346601653,15.65,91.94,91.8,15.65]
[1643346601952,2.09,91.915,91.82,6.0]
[1643346602149,2.09,91.915,91.81,6.0]
[1643346602370,16.3473,91.9,91.81,6.0]
[1643346602553,44.3497874,91.899,91.812,6.0]
[1643346606861,44.3497874,91.899,91.813,0.25]
[1643346607060,44.3497874,91.899,91.82,6.0]
[1643346608964,109.3,91.955,91.83,13.09]
[1643346609265,47.7219,91.948,91.831,0.25]
[1643346609464,47.7219,91.948,91.831,2.38178875]
[1643346609660,47.7219,91.948,91.832,2.13178875]
[1643346609881,48.71267473,91.928,91.833,0.25]
[1643346610483,48.71267473,91.928,91.831,20.44641139]
[1643346610886,48.71267473,91.928,91.832,2.13178875]
[1643346611581,48.71267473,91.928,91.831,20.44641139]
[1643346611986,48.71267473,91.928,91.831,22.57820014]
[1643346612585,47.7219,91.948,91.831,22.57820014]
[1643346612786,23.2406,91.948,91.841,6.0]
[1643346613085,12.48267915,91.972,91.85,13.09]
[1643346613285,12.48267915,91.972,91.851,46.1317]
[1643346613485,12.48267915,91.972,91.86,6.0]
[1643346613685,47.86879719,91.971,91.87,13.09]
[1643346613885,47.86879719,91.971,91.88,13.09]
[1643346614085,47.86879719,91.971,91.89,13.09]
[1643346614286,12.48267915,91.997,91.9,13.09]
[1643346614490,95.36760623,92.056,91.881,2.13178875]
[1643346614491,3.00579121,92.024,91.91,13.09]
[1643346614685,3.00579121,92.029,91.92,13.09]
[1643346614885,3.00087247,92.031,91.93,13.09]
[1643346615087,3.00579121,92.039,91.94,13.09]
[1643346615285,48.53340231,92.03,91.95,13.09]
[1643346615486,48.53340231,92.03,91.922,2.13178875]
[1643346615686,2.99864916,92.029,91.93,13.09]
[1643346615887,23.03674998,92.029,91.94,13.09]
[1643346616087,20.03810082,92.029,91.941,5.86299876]
[1643346616489,64.85870231,92.03,91.941,5.86299876]
[1643346616785,48.53340231,92.03,91.942,0.25]
[1643346616989,48.53340231,92.03,91.941,5.86299876]
[1643346618489,6.0,92.02,91.94,13.09]
[1643346619090,12.48267915,92.029,91.94,13.09]
[1643346619294,12.48267915,92.029,91.941,20.79905425]
[1643346620891,48.53340231,92.03,91.941,20.79905425]
[1643346621291,48.53340231,92.03,91.942,0.25]
[1643346621492,48.53340231,92.03,91.942,2.38186308]
[1643346622094,48.53340231,92.03,91.942,2.13186308]
[1643346622291,109.3,92.029,91.92,13.09]
[1643346622493,109.3,92.019,91.89,13.09]
[1643346622690,2.99446594,92.018,91.89,13.09]
[1643346623091,31.0227429,92.017,91.89,13.09]
[1643346623392,179.14610634,92.016,91.893,25.6430496]
[1643346623595,182.10279776,92.016,91.893,27.77491268]
[1643346623793,38.82336344,92.016,91.903,115.3]
[1643346624294,38.82336344,92.016,91.912,0.66636055]
[1643346624492,38.82336344,92.016,91.921,6.0]
[1643346624694,38.82336344,92.016,91.93,13.09]
[1643346624894,38.82336344,92.016,91.931,22.81115947]
[1643346625093,38.82336344,92.016,91.931,22.56115947]
[1643346626095,38.82336344,92.016,91.921,6.0]
[1643346626394,6.0,92.006,91.921,6.0]
[1643346626594,112.25669142,92.015,91.89,6.0]
[1643346626794,71.7345,92.014,91.89,6.0]
[1643346626995,93.39318113,92.014,91.891,24.90616689]
[1643346627197,2.95669142,92.013,91.891,24.90616689]
[1643346627396,109.3,92.009,91.901,6.0]
[1643346627796,109.3,92.009,91.902,0.25]
[1643346627995,109.3,92.009,91.901,6.0]
[1643346628396,16.3299,92.0,91.901,6.0]
[1643346628596,150.73167511,91.999,91.901,6.0]
[1643346628997,18.70198971,91.998,91.855,23.1643]
[1643346629199,109.3,91.997,91.87,13.09]
[1643346629399,2.99955061,91.996,91.87,13.09]
[1643346629598,109.3,91.995,91.88,6.0]
[1643346629801,130.95868113,91.995,91.88,6.0]
[1643346630000,109.3,91.984,91.873,25.51552719]
[1643346630200,16.3341,91.97,91.873,25.51552719]
[1643346630400,109.3,91.968,91.86,19.09]
[1643346630599,22.7082,91.967,91.86,19.09]
[1643346630798,109.3,91.966,91.86,19.09]
[1643346631298,2.95669142,91.965,91.86,19.09]
[1643346631501,16.337,91.96,91.841,22.07743895]
[1643346631900,32.61443432,91.959,91.841,22.07743895]
[1643346632301,32.61443432,91.958,91.841,22.07743895]
[1643346632800,32.61443432,91.957,91.841,22.07743895]
[1643346633300,41.62637668,91.949,91.842,0.25]
[1643346633499,48.2797,91.948,91.842,2.38186308]
[1643346633700,109.3,91.947,91.842,0.25]
[1643346633901,109.3,91.947,91.841,22.07743895]
[1643346635006,48.2797,91.948,91.841,22.07743895]
[1643346635205,41.62637668,91.949,91.842,2.38186308]
[1643346635406,41.62637668,91.949,91.851,6.0]
[1643346635706,41.62637668,91.949,91.852,6.0]
[1643346636133,41.62637668,91.949,91.861,4.2319712]
[1643346636312,6.0,91.939,91.87,13.09]
[1643346636513,6.0,91.939,91.861,4.2319712]
[1643346638313,6.0,91.939,91.87,13.09]
[1643346638714,41.62637668,91.949,91.871,0.25]
[1643346639314,109.3,91.973,91.871,0.25]
[1643346639516,10.95575319,91.991,91.871,0.25]
[1643346639517,3.00579121,91.995,91.88,6.0]
[1643346639715,2.09,92.046,91.89,13.09]
[1643346639716,112.30579121,92.006,91.89,13.09]
[1643346639922,109.3,92.006,91.89,13.09]
[1643346640120,109.3,92.006,91.9,6.0]
[1643346640314,47.02940488,91.991,91.91,13.09]
[1643346642317,6.0,91.981,91.91,13.09]
[1643346643116,47.02940488,91.991,91.91,13.09]
[1643346644739,3.00579121,92.005,91.911,2.13186308]
[1643346644939,22.662,92.008,91.911,15.69186308]
[1643346645142,3.01458157,92.007,91.921,6.0]
[1643346645339,3.00579121,92.027,91.93,13.09]
[1643346645639,39.66646022,92.039,91.941,5.94365676]
[1643346645840,39.66646022,92.039,91.95,13.09]
[1643346646538,39.66646022,92.039,91.951,0.25]
[1643346647540,3.00579121,92.055,91.96,6.0]
[1643346647743,3.00579121,92.057,91.97,13.09]
[1643346648139,3.00579121,92.07,91.98,6.0]
[1643346648339,3.00579121,92.074,91.99,13.09]
[1643346648540,39.77355181,92.073,91.991,20.36575339]
[1643346648740,3.00579121,92.072,91.991,20.36575339]
[1643346648942,3.01055362,92.072,91.991,20.36575339]
[1643346649341,3.01055362,92.072,91.99,13.09]
[1643346649541,6.0,92.062,91.99,13.09]
[1643346650143,6.0,92.063,91.99,13.09]
[1643346652743,6.0,92.063,91.991,21.34861197]
[1643346652946,6.0,92.063,91.99,13.09]
[1643346653145,2.95669142,92.062,91.88,54.393]
[1643346653346,27.58779142,92.062,91.93,13.09]
[1643346653545,21.70531768,92.061,91.94,19.09]
[1643346653743,3.00579121,92.059,91.95,13.09]
[1643346653946,46.73322159,92.058,91.951,22.3564081]
[1643346654144,3.00332797,92.057,91.951,22.3564081]
[1643346654345,16.3213,92.05,91.951,22.3564081]
[1643346655147,2.95669142,92.049,91.95,13.09]
[1643346655344,16.3243,92.03,91.95,13.09]
[1643346655550,16.3243,92.03,91.92,13.09]
[1643346655745,109.3,92.028,91.92,13.09]
[1643346656145,109.3,92.026,91.921,21.41623712]
[1643346656345,3.00362224,92.025,91.921,21.41623712]
[1643346656546,109.3,92.019,91.921,21.41623712]
[1643346656947,16.3268,92.02,91.921,21.41623712]
[1643346657145,41.75474452,92.008,91.921,21.41623712]
[1643346657349,41.75474452,92.008,91.922,0.25]
[1643346657645,6.0,91.998,91.922,0.25]
[1643346658446,6.0,91.998,91.921,21.41623712]
[1643346658647,6.0,91.998,91.92,13.09]
[1643346659046,109.3,91.997,91.92,13.09]
[1643346660145,109.3,91.997,91.921,2.75399572]
[1643346660547,24.103,92.007,91.921,2.75399572]
[1643346660947,6.0,91.997,91.921,2.75399572]
[1643346662748,6.0,91.997,91.922,0.25]
[1643346662950,24.103,92.007,91.922,0.25]
[1643346663149,6.0,91.997,91.922,0.25]
[1643346663353,41.75474452,92.008,91.922,0.25]
[1643346663649,24.3584,92.037,91.922,0.25]
[1643346663849,3.00579121,92.038,91.923,22.63552943]
[1643346664049,3.00579121,92.05,91.933,6.0]
[1643346664250,3.00579121,92.065,91.94,13.09]
[1643346664452,3.0054665,92.068,91.94,13.09]
[1643346664650,45.61362094,92.067,91.951,21.05028244]
[1643346664852,45.61362094,92.067,91.96,13.09]
[1643346665053,45.61362094,92.067,91.97,6.0]
[1643346665252,45.61362094,92.067,91.98,13.09]
[1643346665451,45.61362094,92.067,91.981,5.25912771]
[1643346665653,45.61362094,92.067,91.981,5.50912771]
[1643346667457,45.61362094,92.067,91.991,6.0]
[1643346667659,45.61362094,92.067,92.001,21.05028244]
[1643346669761,3.00579121,92.082,92.002,0.25]
[1643346669965,3.00579121,92.087,92.002,0.25]
[1643346670360,6.0,92.077,92.002,0.25]
[1643346670563,3.00970768,92.086,92.002,0.25]
[1643346670760,42.44760138,92.076,92.002,0.25]
[1643346672260,6.0,92.078,92.002,0.25]
[1643346672661,3.00579121,92.089,92.002,2.38983775]
[1643346672861,6.0,92.079,92.011,6.0]
[1643346673061,6.0,92.079,92.002,2.38983775]
[1643346673062,6.0,92.079,92.02,13.09]
[1643346673260,6.0,92.079,92.021,5.25912771]
[1643346673461,47.05796131,92.085,92.021,5.25912771]
[1643346673763,6.0,92.075,92.021,5.25912771]
[1643346674562,6.0,92.075,92.02,13.09]
[1643346674767,6.0,92.075,92.0,13.09]
[1643346674964,49.42459142,92.074,91.971,22.8414]
[1643346675162,3.01101303,92.073,91.95,13.09]
[1643346675363,3.00579121,92.054,91.918,23.3991]
[1643346675663,3.00579121,92.047,91.919,23.16024205]
[1643346675862,16.3232,92.03,91.919,23.16024205]
[1643346676062,44.95694701,92.039,91.89,2.13983775]
[1643346676063,2.09,92.005,91.89,13.09]
[1643346676371,3.00579121,92.02,91.89,13.09]
[1643346676564,11.52843967,92.004,91.9,6.0]